[Event "Slovakian-ch Youth 2022"]
[Site "Lubovna"]
[Date "2022.05.22"]
[Round "2.7"]
[White "Gyerpal, Adrian"]
[Black "Marcin, Richard"]
[Result "1-0"]
[ECO "A62"]
[WhiteElo "2171"]
[BlackElo "1325"]
[Annotator "TA"]
[PlyCount "67"]
[EventDate "2022.05.22"]
[EventCountry "SVK"]
[SourceTitle "playchess.com"]
[Source "ChessBase"]
[SourceQuality "1"]
[TimeControl "40/5400+30:1800+30"]

{[%evp 15,67,21,22,18,31,34,95,93,104,11,10,15,18,4,98,98,83,79,107,59,74,14,9,-6,19,30,184,184,184,190,197,197,268,268,406,392,595,513,675,512,632,547,646,664,638,619,29978,29979,2914,3126,29988,2312,6214,1898]} 1. d4 {[%emt 0:00:10]} Nf6 {[%emt 0:00:11]} 2. Nf3 {[%emt 0:00:42]} c5 {[%emt 0:00:44]} 3. c4 {[%emt 0:01:23]} e6 {[%emt 0:00:34]} 4. d5 {[%emt 0:07:17]} exd5 {[%emt 0:00:18]} 5. cxd5 {[%emt 0:00:06]} d6 {[%emt 0:00:16]} 6. Nc3 {[%emt 0:00:43]} g6 {[%emt 0:00:34]} 7. g3 {[%emt 0:00:08] 7.h3 is setting a new trend.} Bg7 {[%emt 0:00:12]} 8. Bg2 {[%emt 0:00:07]} O-O {[%emt 0:00:23]} 9. Nd2 {[%emt 0:01:42] A62: Modern Benoni: Fianchetto Variation without early ...Nbd7.} Re8 {[%emt 0:03:38]} 10. Nc4 {[%emt 0:01:48]} Bf5 {[%emt 0:02:53]} (10... Bf8 $14) 11. O-O {[%emt 0:06:02] [#] White is better.} Ne4 $146 {[%emt 0:01:06]} ({Predecessor:} 11... a5 12. f3 Ra6 13. e4 Bd7 14. a4 Rf8 15. Be3 Ne8 16. e5 Bc8 17. Nb5 Nd7 18. exd6 {½-½ (71) Malmstroem,J (2162)-Galvin,J (2014) IECC email 1998}) 12. Nxe4 {[%emt 0:03:11]} (12. Bxe4 $16 Bxe4 13. Nb5) 12... Bxe4 $11 {[%emt 0:01:21]} 13. Bf4 {[%emt 0:00:17]} Bxg2 {[%emt 0:00:28]} 14. Kxg2 {[%emt 0:00:12]} Be5 {[%emt 0:00:17]} (14... Re4 $11 15. Qc2 (15. Nxd6 Rxf4 16. gxf4 Qxd6 $17) 15... Qe7) 15. Bxe5 $16 {[%emt 0:02:57]} dxe5 {[%emt 0:00:11]} 16. a4 {[%emt 0:01:19]} e4 {[%emt 0:05:04]} 17. Qd2 {[%emt 0:03:52]} ({White should play} 17. Qb3 $16) 17... Nd7 {[%emt 0:06:50]} 18. Nd6 {[%emt 0:14:27]} (18. d6 $16) 18... Re5 $1 $11 {[%emt 0:05:23]} 19. Nxb7 {[%emt 0:00:50][%cal Bd6b7,Bb7a5,Ba5c6][%mdl 32]} Qe7 {[%emt 0:00:55]} (19... Qc7 $5 20. Na5 Nb6 $11) 20. Na5 {[%emt 0:07:41]} Qg5 $2 {[%emt 0:07:32] This costs Black the game.} (20... Rh5 $11 {and Black stays safe.}) 21. Qxg5 $18 {[%emt 0:02:11]} Rxg5 {[%emt 0:00:14]} 22. Rfd1 $36 {[%emt 0:02:42][%mdl 2048] White is in control.} Rb8 {[%emt 0:02:18]} 23. h4 {[%emt 0:02:19]} Rf5 {[%emt 0:02:05]} (23... Rh5 $142 24. Rab1 a6) 24. Nc6 $1 {[%emt 0:02:02][%csl LRa7,LRb8]} Re8 {[%emt 0:00:42]} (24... Rb3 {is a better defense.} 25. Ne7+ Kg7 26. Nxf5+ gxf5) 25. Nxa7 {[%emt 0:01:52]} Ne5 {[%emt 0:00:39]} (25... Ra8 $142 26. Nc6 Rf6) 26. d6 {[%emt 0:02:13][%cal Bd5d6,Bd6d7][%mdl 32] aiming for a5.} Rd8 {[%emt 0:01:30]} 27. Rac1 {[%emt 0:04:21]} Ng4 {[%emt 0:00:45]} 28. d7 {[%emt 0:01:36]} Rxf2+ {[%emt 0:00:39]} 29. Kg1 $1 {[%emt 0:00:16]} ({Don't blunder} 29. Kh3 $2 f5 30. Rh1 Rxe2 $19) 29... Rxe2 {[%emt 0:03:24] ...e3 is the strong threat.} 30. Nc6 {[%emt 0:01:28]} Ne3 {[%emt 0:00:31]} 31. Nxd8 {[%emt 0:00:41]} Rg2+ {[%emt 0:00:28]} 32. Kh1 {[%emt 0:00:20][%cal Od8e6] White threatens Ne6! and mate.} Rxg3 {[%emt 0:00:22] [#]} 33. Rd2 {[%emt 0:03:54]} (33. Nxf7 $142 $1 Rh3+ (33... Nxd1 34. d8=Q+) 34. Kg1 Kg7 {[#]} 35. d8=Q $1 Rg3+ 36. Kh2 Rg2+ 37. Kh3 Rh2+ 38. Kxh2) 33... Ng4 {[%emt 0:01:08]} 34. Nc6 {[%emt 0:00:52] Weighted Error Value: White=0.31/Black=1.18} 1-0

[Event "Slovakian-ch Youth 2022"]
[Site "Lubovna"]
[Date "2022.05.22"]
[Round "2.7"]
[White "Magda, Filip"]
[Black "Tokarcik, Jan"]
[Result "1-0"]
[ECO "D02"]
[WhiteElo "1624"]
[BlackElo "1313"]
[Annotator "NA COMBH"]
[PlyCount "53"]
[EventDate "2022.05.22"]
[EventCountry "SVK"]
[SourceTitle "playchess.com"]
[Source "ChessBase"]
[SourceQuality "1"]
[TimeControl "40/5400+30:1800+30"]

1. d4 {[%emt 0:00:27]} d5 {[%emt 0:00:26]} 2. Nf3 {[%emt 0:00:29]} Nf6 {[%emt 0:00:35]} 3. c4 {[%emt 0:01:09]} e6 {[%emt 0:01:26]} 4. g3 {[%emt 0:01:31]} Nc6 {[%emt 0:03:07]} 5. Bg2 {[%emt 0:01:07]} Bb4+ {[%emt 0:01:06]} 6. Nbd2 {[%emt 0:02:45]} dxc4 {[%emt 0:03:42]} 7. a3 {[%emt 0:01:21]} Ba5 {[%emt 0:02:22]} 8. Qa4 {[%emt 0:03:07]} c3 {[%emt 0:05:36]} 9. bxc3 {[%emt 0:03:40]} Bxc3 {[%emt 0:06:55]} 10. Rb1 {[%emt 0:01:47]} Bxd2+ {[%emt 0:05:38]} 11. Bxd2 {[%emt 0:00:59]} O-O {[%emt 0:03:34]} 12. O-O {[%emt 0:08:17]} Ne4 {[%emt 0:11:34]} 13. Rfd1 {[%emt 0:08:09]} Nd6 {[%emt 0:09:41]} 14. Ne5 {[%emt 0:02:53]} Bd7 {[%emt 0:15:43]} 15. Bxc6 {[%emt 0:04:56]} bxc6 {[%emt 0:02:37]} 16. Nxc6 {[%emt 0:01:51]} Qe8 {[%emt 0:02:28]} 17. Rdc1 {[%emt 0:01:09]} Bxc6 {[%emt 0:12:19]} 18. Qxc6 {[%emt 0:00:26]} Qxc6 {[%emt 0:00:24]} 19. Rxc6 {[%emt 0:00:07]} Rfc8 {[%emt 0:02:02]} 20. Rbc1 {[%emt 0:01:12]} Nb5 {[%emt 0:01:23]} 21. Be3 {[%emt 0:06:58]} h6 {[%emt 0:03:34]} 22. a4 {[%emt 0:02:52]} Nd6 {[%emt 0:02:51]} 23. Rxc7 {[%emt 0:00:51]} Rxc7 {[%emt 0:00:16]} 24. Rxc7 {[%emt 0:00:05]} Nf5 {[%emt 0:00:09]} 25. Kg2 {[%emt 0:00:57]} g5 {[%emt 0:01:08]} 26. Kf3 {[%emt 0:01:25]} Kg7 {[%emt 0:00:36]} 27. Ke4 {[%emt 0:02:28]} 1-0

[Event "Slovakian-ch Youth 2022"]
[Site "Lubovna"]
[Date "2022.05.22"]
[Round "2.8"]
[White "Valko, Michal"]
[Black "Zdrazil, Patrik"]
[Result "0-1"]
[ECO "B59"]
[WhiteElo "1906"]
[BlackElo "1997"]
[Annotator "TA"]
[PlyCount "63"]
[EventDate "2022.05.22"]
[EventCountry "SVK"]
[SourceTitle "playchess.com"]
[Source "ChessBase"]
[SourceQuality "1"]
[TimeControl "40/5400+30:1800+30"]

{[%evp 16,63,17,22,14,21,6,-3,10,9,11,13,23,0,0,0,0,-8,-8,-15,-22,-26,-20,-59,-30,-239,-222,-372,-341,-350,-330,-1058,-1039,-29989,-29990,-29990,-29991,-29991,-29992,-29992,-29991,-29993,-29994,-29996,-29995,-29997,-29996,-29996,-29997,-29999]} 1. e4 {[%emt 0:00:12]} c5 {[%emt 0:00:05]} 2. Nf3 {[%emt 0:00:29]} d6 {[%emt 0:00:05]} 3. d4 {[%emt 0:00:25]} cxd4 {[%emt 0:00:04]} 4. Nxd4 {[%emt 0:00:23]} Nf6 {[%emt 0:00:05]} 5. Nc3 {[%emt 0:00:38]} Nc6 {[%emt 0:00:20]} 6. Be2 {[%emt 0:03:41]} e5 {[%emt 0:00:49]} 7. Nb3 {[%emt 0:01:20]} Be7 {[%emt 0:01:11]} 8. O-O {[%emt 0:00:36]} O-O {[%emt 0:00:15]} 9. Bf3 {[%emt 0:01:04]} Be6 {[%emt 0:06:31] B59: Classical Sicilian: 6 Be2 e5 7 Nb3.} 10. Nd5 {[%emt 0:02:19]} Rc8 {[%emt 0:06:55] [#]} 11. a4 $146 {[%emt 0:02:39]} ({Predecessor:} 11. Be3 Re8 12. c4 b6 13. Qd2 Bf8 14. a4 Nb8 15. Rfc1 Nbd7 16. a5 Bxd5 17. cxd5 Rxc1+ 18. Rxc1 {1-0 (45) Ramirez,A (2288)-Galaviz Valdez,M (2110) Hermosillo 2002}) 11... Bxd5 {[%emt 0:15:29] The position is equal.} 12. exd5 {[%emt 0:00:04]} Na5 {[%emt 0:00:07][%cal Bc6a5,Ba5c4,Bc4d2][%mdl 32]} 13. Nd2 {[%emt 0:04:42]} Nc4 {[%emt 0:00:25]} 14. b3 {[%emt 0:00:42]} Nxd2 {[%emt 0:00:10]} 15. Qxd2 {[%emt 0:00:16]} Nd7 {[%emt 0:05:21]} 16. c4 {[%emt 0:03:49]} a5 {[%emt 0:04:48]} 17. Ba3 {[%emt 0:04:27]} f5 {[%emt 0:01:35][%cal Bf7f5,Bf5f4,Bf4f3][%mdl 32]} 18. Be2 {[%emt 0:06:31]} e4 {[%emt 0:08:20]} 19. b4 {[%emt 0:01:39]} Ne5 {[%emt 0:01:39]} (19... f4 $5 {[%cal Rf4f3]} 20. f3 e3 $11) 20. Qa2 $2 {[%emt 0:04:36] Now White is beyond hope.} (20. Qc2 $11 {and White stays safe.}) 20... f4 $19 {[%emt 0:09:14] [#] aiming for ...f3.} 21. Rfe1 {[%emt 0:09:54]} (21. f3 $142 axb4 22. Bc1) 21... f3 {[%emt 0:06:47]} 22. Bf1 {[%emt 0:03:29]} fxg2 {[%emt 0:01:12]} 23. Kxg2 {[%emt 0:00:01]} (23. Bxg2 axb4 24. Bxb4) 23... Bh4 {[%emt 0:02:06]} 24. Re2 {[%emt 0:02:24]} Qg5+ {[%emt 0:03:13] Black mates.} 25. Kh1 {[%emt 0:00:12]} Nf3 {[%emt 0:00:14][%csl Gf3][%cal Rg5g1]} 26. Bg2 {[%emt 0:01:41]} Qf4 {[%emt 0:00:07][%csl Gf3][%cal Rf4h2]} 27. Bxf3 {[%emt 0:00:02]} Qxf3+ {[%emt 0:00:04]} 28. Kg1 {[%emt 0:00:13]} Rf6 {[%emt 0:01:32]} 29. Rc2 {[%emt 0:02:46]} Rcf8 {[%emt 0:03:12]} 30. Re1 {[%emt 0:02:21]} Qg4+ {[%emt 0:03:28]} 31. Kh1 {[%emt 0:00:23]} Rxf2 {[%emt 0:00:45][%csl Gf2][%cal Rg4g2]} 32. bxa5 {[%emt 0:01:44] Weighted Error Value: White=0.80/Black=0.04 (flawless)} 0-1

[Event "Slovakian-ch Youth 2022"]
[Site "Lubovna"]
[Date "2022.05.22"]
[Round "2.8"]
[White "Demjan, David"]
[Black "Visvader, Kristof"]
[Result "0-1"]
[ECO "D43"]
[WhiteElo "1375"]
[BlackElo "1607"]
[Annotator "NA COMBH"]
[PlyCount "52"]
[EventDate "2022.05.22"]
[EventCountry "SVK"]
[SourceTitle "playchess.com"]
[Source "ChessBase"]
[SourceQuality "1"]
[TimeControl "40/5400+30:1800+30"]

1. d4 {[%emt 0:00:04]} d5 {[%emt 0:00:14]} 2. c4 {[%emt 0:00:03]} e6 {[%emt 0:00:03]} 3. Nc3 {[%emt 0:00:35]} Nf6 {[%emt 0:00:26]} 4. Nf3 {[%emt 0:01:46]} c6 {[%emt 0:01:02]} 5. Bg5 {[%emt 0:03:17]} Be7 {[%emt 0:01:07]} 6. e3 {[%emt 0:01:01]} O-O {[%emt 0:01:28]} 7. cxd5 {[%emt 0:06:41]} exd5 {[%emt 0:00:32]} 8. Bd3 {[%emt 0:00:19]} Nbd7 {[%emt 0:01:19]} 9. O-O {[%emt 0:02:31]} Re8 {[%emt 0:01:57]} 10. Qc2 {[%emt 0:01:00]} Nf8 {[%emt 0:01:12]} 11. Ne5 {[%emt 0:00:35]} N6d7 {[%emt 0:03:45]} 12. Bxe7 {[%emt 0:03:22]} Qxe7 {[%emt 0:00:21]} 13. f4 {[%emt 0:01:37]} f6 {[%emt 0:06:02]} 14. Ng4 {[%emt 0:02:51]} Nb6 {[%emt 0:01:19]} 15. Nf2 {[%emt 0:01:26]} Qxe3 {[%emt 0:03:29]} 16. Rae1 {[%emt 0:00:29]} Qxe1 {[%emt 0:00:30]} 17. Rxe1 {[%emt 0:00:05]} Rxe1+ {[%emt 0:00:07]} 18. Bf1 {[%emt 0:00:16]} Nc4 {[%emt 0:10:59]} 19. Ncd1 {[%emt 0:09:57]} Ne3 {[%emt 0:05:17]} 20. Nxe3 {[%emt 0:00:22]} Rxe3 {[%emt 0:00:10]} 21. Qd2 {[%emt 0:00:28]} Re7 {[%emt 0:01:04]} 22. g3 {[%emt 0:00:56]} Be6 {[%emt 0:04:48]} 23. Nd3 {[%emt 0:03:48]} Rae8 {[%emt 0:01:28]} 24. Qa5 {[%emt 0:03:59]} b6 {[%emt 0:03:39]} 25. Qc3 {[%emt 0:00:12]} Rc8 {[%emt 0:04:50]} 26. b4 {[%emt 0:03:22]} Bf5 0-1

[Event "Slovakian-ch Youth 2022"]
[Site "Lubovna"]
[Date "2022.05.22"]
[Round "2.9"]
[White "Sokolovsky, Jakub"]
[Black "Priechodsky, Radovan"]
[Result "0-1"]
[ECO "B00"]
[WhiteElo "1613"]
[BlackElo "1965"]
[Annotator "TA"]
[PlyCount "60"]
[EventDate "2022.05.22"]
[EventCountry "SVK"]
[SourceTitle "playchess.com"]
[Source "ChessBase"]
[SourceQuality "1"]
[TimeControl "40/5400+30:1800+30"]

{[%evp 9,60,36,75,60,77,74,73,67,70,75,61,33,35,30,37,-37,-36,-32,-33,-73,-43,-55,-36,-66,-30,-37,-22,-82,-68,-101,-102,-123,-74,-105,-112,-119,-107,-138,-123,-136,-126,-129,-133,-195,-182,-401,-396,-668,-617,-579,-435,-714,-656]} 1. e4 {[%emt 0:00:05]} a6 {[%emt 0:00:04]} 2. d4 {[%emt 0:00:18]} d6 {[%emt 0:00:06]} 3. Nf3 {[%emt 0:01:32]} g6 {[%emt 0:00:07]} 4. c4 {[%emt 0:01:02]} Bg7 {[%emt 0:00:15]} 5. Nc3 {[%emt 0:01:06]} Nd7 {[%emt 0:00:19]} 6. Bd3 {[%emt 0:02:43] B00: Queen's Fianchetto Defence, Nimzowitsch Defence.} c5 {[%emt 0:08:53]} 7. d5 {[%emt 0:00:23]} Ngf6 {[%emt 0:00:11]} 8. O-O {[%emt 0:03:23] White is better.} O-O {[%emt 0:00:30]} 9. Rb1 {[%emt 0:05:22]} Ng4 {[%emt 0:01:25] [#]} 10. h3 $146 {[%emt 0:03:08]} ({Predecessor:} 10. b3) 10... Nge5 {[%emt 0:01:00]} 11. Nxe5 {[%emt 0:01:46]} Nxe5 {[%emt 0:00:06]} 12. f4 {[%emt 0:02:08]} ({Better is} 12. Be2 $14) 12... Nxd3 $15 {[%emt 0:02:15]} 13. Qxd3 {[%emt 0:00:01]} b5 {[%emt 0:01:31]} 14. Re1 {[%emt 0:13:46]} bxc4 {[%emt 0:03:16]} (14... Qa5 $5 {[%cal Rc8d7]}) 15. Qxc4 {[%emt 0:00:50]} a5 {[%emt 0:00:43]} 16. e5 {[%emt 0:10:38]} Ba6 {[%emt 0:02:01]} 17. Qe4 {[%emt 0:01:16]} Qb6 {[%emt 0:01:10]} 18. a3 {[%emt 0:15:35]} (18. Bd2 $11) 18... Rab8 {[%emt 0:13:29]} 19. Bd2 {[%emt 0:06:46]} Qb3 {[%emt 0:04:43]} 20. Re3 {[%emt 0:09:52]} Qc4 {[%emt 0:03:21]} (20... Bc8 $142 {Hoping for ...Bf5.} 21. Na4 Bf5 22. Rxb3 Bxe4 23. Rxb8 Rxb8) 21. Qf3 {[%emt 0:05:46]} dxe5 {[%emt 0:37:01]} 22. fxe5 {[%emt 0:00:03]} Qd4 $36 {[%emt 0:00:11][%csl LRd2,LRe5][%mdl 2048] Black is in control.} 23. Be1 {[%emt 0:04:37]} Bh6 {[%emt 0:06:55] A strong pair of Bishops.} ({Reject} 23... Bxe5 $6 24. Rd1 Qf4 25. Qxf4 Bxf4 26. Rxe7 $11) 24. Bf2 {[%emt 0:01:10]} Bxe3 {[%emt 0:00:47]} 25. Bxe3 {[%emt 0:00:03]} Qxe5 {[%emt 0:00:11]} 26. Bh6 {[%emt 0:07:50]} (26. Qf2 $17 {was worth a try.}) 26... Rfd8 {[%emt 0:02:13] [#] Threatens to win with ...g5.} 27. Rd1 $2 {[%emt 0:02:18]} (27. Bf4 Qd4+ 28. Be3) 27... Rxb2 {[%emt 0:02:05]} 28. d6 $2 {[%emt 0:00:28]} (28. Bf4 Qf6 29. Ne4) 28... exd6 {[%emt 0:05:52] White must now prevent ...Bb7. Black is clearly winning.} 29. Ne4 {[%emt 0:00:25]} Be2 {[%emt 0:01:04]} 30. Nf6+ {[%emt 0:00:38]} (30. Qf6 $142 Qxf6 31. Nxf6+ Kh8 32. Rc1) 30... Kh8 {[%emt 0:00:14] Weighted Error Value: White=0.56/Black=0.20 (precise)} 0-1

[Event "Slovakian-ch Youth 2022"]
[Site "Lubovna"]
[Date "2022.05.22"]
[Round "2.10"]
[White "Kostura, Daniel"]
[Black "Kapec, Kristian"]
[Result "0-1"]
[ECO "B23"]
[WhiteElo "1510"]
[BlackElo "1902"]
[Annotator "TA"]
[PlyCount "82"]
[EventDate "2022.05.22"]
[EventCountry "SVK"]
[SourceTitle "playchess.com"]
[Source "ChessBase"]
[SourceQuality "1"]
[TimeControl "40/5400+30:1800+30"]

{[%evp 9,82,45,85,27,26,23,25,3,103,77,83,0,59,9,18,5,0,-32,-22,-72,-76,-119,-60,-112,-94,-87,-97,-144,-139,-130,-83,-215,-51,-125,-77,-80,-87,-98,-74,-102,-97,-131,-68,-67,-77,-97,-85,-154,-147,-185,-179,-165,-166,-215,-178,-297,-263,-148,-185,-360,-359,-350,-335,-375,-239,-379,-321,-325,-316,-372,-336,-422,-418,-12835,-12833]} 1. e4 {[%emt 0:00:06][%cal Be2e4,Be4e5][%mdl 32]} c5 {[%emt 0:00:03]} 2. Nc3 {[%emt 0:00:09]} g6 {[%emt 0:00:08]} 3. f4 {[%emt 0:00:13]} Bg7 {[%emt 0:00:14]} 4. Nf3 {[%emt 0:00:03]} e6 {[%emt 0:00:25]} 5. e5 {[%emt 0:00:03]} Ne7 {[%emt 0:01:06]} 6. d4 {[%emt 0:03:23] B23: Closed Sicilian: Lines without g3.} (6. Ne4 $1 $16 {[%cal Re4d6]}) 6... cxd4 $11 {[%emt 0:00:43]} 7. Nxd4 {[%emt 0:00:39]} Nbc6 {[%emt 0:03:11]} 8. Be3 {[%emt 0:02:39] [#] White has an edge.} f6 $146 {[%emt 0:01:56]} (8... O-O $11) ({Predecessor:} 8... O-O 9. Ncb5 a6 10. Nd6 Nf5 11. N4xf5 exf5 12. Qd2 b5 13. Bc5 Ne7 14. O-O-O Qc7 {1-0 (30) Cherry,B (731)-Jokmin,A (763) LSS email 2012}) 9. exf6 $16 {[%emt 0:07:27]} Bxf6 {[%emt 0:00:08]} 10. Nxc6 {[%emt 0:00:14]} ({Better is} 10. Ne4 $16 O-O 11. Nxf6+ Rxf6 12. g3) 10... Nxc6 {[%emt 0:00:32]} (10... bxc6 $11 11. Bd3 O-O) 11. Qd2 {[%emt 0:00:41]} (11. Ne4 $1 $14) 11... d5 $11 {[%emt 0:03:36]} 12. Bf2 {[%emt 0:15:30]} Qa5 {[%emt 0:02:25]} 13. Bb5 {[%emt 0:16:07]} O-O {[%emt 0:01:23] ...Bxc3 is the strong threat.} 14. Bxc6 {[%emt 0:00:32]} (14. Be2 $1 $11) 14... bxc6 $17 {[%emt 0:00:20]} 15. Bd4 {[%emt 0:01:02]} Qb4 {[%emt 0:00:41]} (15... Bxd4 $17 16. Qxd4 Rb8) 16. O-O-O {[%emt 0:03:34]} (16. Bxf6 $15 Rxf6 17. O-O) 16... Bxd4 {[%emt 0:02:10]} 17. Qxd4 {[%emt 0:01:33]} Rxf4 {[%emt 0:00:16]} 18. Qe3 {[%emt 0:05:08]} (18. Qxb4 $142 Rxb4 19. Rhe1) 18... Rb8 {[%emt 0:01:33]} 19. b3 {[%emt 0:00:44]} Rf7 {[%emt 0:01:23]} (19... Rb7 $142 20. Na4 Re7) 20. Na4 {[%emt 0:04:15]} (20. Rdf1 $17) 20... Qf4 $2 {[%emt 0:00:58]} (20... Qa3+ $19 21. Kd2 d4) 21. Qd2 {[%emt 0:06:18]} (21. Qxf4 $15 Rxf4 22. Nc5) 21... Rb4 {[%emt 0:01:06] Black is more active.} ({Black should play} 21... e5 22. Qxf4 Rxf4) 22. Nc5 {[%emt 0:03:41]} Qxd2+ {[%emt 0:00:17]} 23. Rxd2 {[%emt 0:00:27]} Rbf4 {[%emt 0:00:26]} 24. Re1 {[%emt 0:00:53] [#]} Rf1 $1 $36 {[%emt 0:00:08][%mdl 2048] Black is on the roll.} 25. Rdd1 {[%emt 0:00:50]} Rxe1 {[%emt 0:00:18]} (25... R1f2 $17 26. Rd2 Rxd2 27. Kxd2 Rf2+ 28. Re2 Rxe2+ 29. Kxe2 Kg7) 26. Rxe1 {[%emt 0:00:02][%mdl 4096] Endgame KRB-KRN} Rf6 {[%emt 0:02:34] Black keeps a firm grip on the game.} 27. Re2 {[%emt 0:05:24]} Kf7 {[%emt 0:00:15][%cal Oe6e5]} 28. Kd2 {[%emt 0:01:29] [#]} ({White should try} 28. Nd3) 28... Ke7 $1 {[%emt 0:00:11]} 29. c3 {[%emt 0:03:08]} Kd6 {[%emt 0:00:11]} 30. b4 {[%emt 0:00:22]} e5 {[%emt 0:00:28][%cal Be6e5,Be5d4][%mdl 32]} 31. Ke3 {[%emt 0:03:23]} (31. Ke1 {was called for.}) 31... Rf4 {[%emt 0:01:18][%cal Oa7a5]} 32. Rf2 {[%emt 0:01:02]} (32. h3 $142) 32... Rxf2 $19 {[%emt 0:00:44]} 33. Kxf2 {[%emt 0:00:03] KB-KN} d4 {[%emt 0:00:45]} 34. cxd4 $2 {[%emt 0:01:37]} (34. c4) 34... exd4 {[%emt 0:00:01]} 35. Ne4+ {[%emt 0:02:53]} Kd5 {[%emt 0:00:28]} 36. Nd2 {[%emt 0:01:11]} Bf5 {[%emt 0:00:36] White must now prevent ...c5.} 37. a3 {[%emt 0:02:55]} (37. Ke2 {was necessary.}) 37... c5 {[%emt 0:00:31]} 38. bxc5 {[%emt 0:00:40]} Kxc5 {[%emt 0:00:04]} 39. Ke2 {[%emt 0:02:04]} Kb5 {[%emt 0:00:16]} 40. g3 {[%emt 0:01:27]} Ka4 {[%emt 0:00:16]} 41. Nf3 {[%emt 0:08:59]} (41. g4 $142 Bxg4+ 42. Kd3) 41... Bg4 {[%emt 0:00:32] Weighted Error Value: White=0.68/Black=0.31} 0-1

[Event "Slovakian-ch Youth 2022"]
[Site "Lubovna"]
[Date "2022.05.22"]
[Round "2.10"]
[White "Cerven, Samuel"]
[Black "Toth, Marton"]
[Result "1-0"]
[ECO "B50"]
[WhiteElo "1353"]
[BlackElo "1849"]
[Annotator "NA RC COMBH"]
[PlyCount "103"]
[EventDate "2022.05.22"]
[EventCountry "SVK"]
[SourceTitle "playchess.com"]
[Source "ChessBase"]
[SourceQuality "1"]
[TimeControl "40/5400+30:1800+30"]

1. e4 {[%emt 0:00:15]} c5 {[%emt 0:00:02]} 2. Nf3 {[%emt 0:00:21]} d6 {[%emt 0:00:08]} 3. c3 {[%emt 0:00:51]} Nf6 {[%emt 0:00:26]} 4. h3 {[%emt 0:03:40]} Nc6 {[%emt 0:00:35]} 5. Bd3 {[%emt 0:00:16]} g6 {[%emt 0:00:46]} 6. Bc2 {[%emt 0:00:23]} Bg7 {[%emt 0:00:56]} 7. O-O {[%emt 0:00:32]} O-O {[%emt 0:02:38]} 8. d4 {[%emt 0:01:01]} cxd4 {[%emt 0:01:32]} 9. cxd4 {[%emt 0:00:11]} e6 10. Nc3 {[%emt 0:03:46]} a6 {[%emt 0:02:29]} 11. a3 {[%emt 0:08:47]} b5 {[%emt 0:02:18]} 12. Bg5 {[%emt 0:04:47]} Qc7 {[%emt 0:07:42]} 13. Rc1 {[%emt 0:04:44]} Bb7 {[%emt 0:02:15]} 14. Re1 {[%emt 0:06:13]} Rac8 {[%emt 0:03:57]} 15. Qd2 {[%emt 0:03:04]} Rfe8 {[%emt 0:04:11]} 16. Bb1 {[%emt 0:03:19]} Qb6 {[%emt 0:09:53]} 17. Red1 {[%emt 0:13:01]} b4 {[%emt 0:07:38]} 18. axb4 {[%emt 0:07:46]} Nxb4 {[%emt 0:04:04]} 19. Be3 {[%emt 0:08:29]} Qd8 {[%emt 0:12:42]} 20. Bh6 {[%emt 0:02:52]} Bh8 {[%emt 0:04:39]} 21. Qe3 {[%emt 0:07:34]} Rc7 {[%emt 0:08:29]} 22. Ne2 {[%emt 0:02:17]} Rxc1 {[%emt 0:04:40]} 23. Rxc1 {[%emt 0:00:09]} Qa8 {[%emt 0:00:26]} 24. Ng3 {[%emt 0:00:48]} e5 {[%emt 0:03:50]} 25. d5 {[%emt 0:02:24]} Nd7 {[%emt 0:01:15]} 26. Qa3 {[%emt 0:02:01]} Nxd5 {[%emt 0:02:06]} 27. exd5 {[%emt 0:00:16]} Bxd5 {[%emt 0:00:26]} 28. Qxd6 {[%emt 0:03:21]} Nf6 {[%emt 0:04:45]} 29. Rc7 {[%emt 0:02:17]} Qd8 {[%emt 0:04:09]} 30. Qxd8 {[%emt 0:01:04]} Rxd8 {[%emt 0:00:02]} 31. Nxe5 {[%emt 0:00:35]} Ne8 {[%emt 0:00:35]} 32. Re7 {[%emt 0:00:54]} Bf6 {[%emt 0:00:45]} 33. Rd7 {[%emt 0:01:59]} Nc7 {[%emt 0:04:04]} 34. Rxd8+ {[%emt 0:00:37]} Bxd8 {[%emt 0:00:04]} 35. Bd2 {[%emt 0:00:49]} Bf6 {[%emt 0:00:20]} 36. Bc3 {[%emt 0:00:16]} Nb5 {[%emt 0:00:28]} 37. Ne2 {[%emt 0:00:27]} Bxg2 {[%emt 0:00:49]} 38. Kxg2 {[%emt 0:00:32]} Nxc3 {[%emt 0:00:24]} 39. Nxc3 {[%emt 0:00:16]} Bxe5 {[%emt 0:00:08]} 40. Na4 {[%emt 0:00:48]} Bd4 {[%emt 0:00:36]} 41. b3 {[%emt 0:30:46]} a5 {[%emt 0:30:37]} 42. f3 {[%emt 0:00:35]} Kf8 {[%emt 0:00:40]} 43. Kg3 {[%emt 0:00:18]} Ke7 {[%emt 0:00:55]} 44. Kf4 {[%emt 0:00:39]} f5 {[%emt 0:00:23]} 45. Kg5 {[%emt 0:00:23]} Be3+ {[%emt 0:01:29]} 46. Kh4 {[%emt 0:00:16]} Bf2+ {[%emt 0:00:42]} 47. Kg5 {[%emt 0:00:29]} Be3+ {[%emt 0:00:00]} 48. f4 {[%emt 0:00:00]} Ke6 {[%emt 0:00:00]} 49. Nc3 {[%emt 0:00:00]} h6+ {[%emt 0:00:00]} 50. Kxg6 {[%emt 0:00:00]} Bxf4 {[%emt 0:00:00]} 51. Bxf5+ {[%emt 0:00:00]} Ke7 {[%emt 0:00:00]} 52. Nd5+ {[%emt 0:00:00]} 1-0